[Event "Titled Tuesday Blitz January 17 Early 2023"]
[White "Fajdetic, Hrvoje"]
[Black "Zaichenko, Daria"]
[WhiteFideId "14501945"]
[BlackFideId "4197453"]
[WhiteElo "2151"]
[BlackElo "2104"]
[Result "0-1"]
[Round "05"]
[TimeControl "180+2"]
[Date "2023.01.17"]
[WhiteClock "0:00:13"]
[BlackClock "0:00:23"]

1. f4 {[%clk 0:02:45]}  d5 {[%clk 0:02:56]} 2. Nf3 {[%clk 0:02:44]}  c5 {[%clk 0:02:56]} 3. e3 {[%clk 0:02:43]}  Nc6 {[%clk 0:02:56]} 4. Be2 {[%clk 0:02:31]}  Nf6 {[%clk 0:02:53]} 5. O-O {[%clk 0:02:32]}  b6 {[%clk 0:02:50]} 6. b3 {[%clk 0:02:32]}  Bb7 {[%clk 0:02:50]} 7. Bb2 {[%clk 0:02:32]}  e6 {[%clk 0:02:50]} 8. d3 {[%clk 0:02:29]}  Qc7 {[%clk 0:02:49]} 9. Ne5 {[%clk 0:02:23]}  Bd6 {[%clk 0:02:46]} 10. Nxc6 {[%clk 0:02:16]}  Bxc6 {[%clk 0:02:45]} 11. Nd2 {[%clk 0:02:00]}  O-O-O {[%clk 0:02:44]} 12. a4 {[%clk 0:01:55]}  h5 {[%clk 0:02:35]} 13. Bf3 {[%clk 0:01:48]}  e5 {[%clk 0:02:25]} 14. g3 {[%clk 0:01:32]}  e4 {[%clk 0:02:21]} 15. Bg2 {[%clk 0:01:27]}  Ng4 {[%clk 0:02:12]} 16. Qe2 {[%clk 0:01:24]}  f5 {[%clk 0:02:06]} 17. dxe4 {[%clk 0:01:22]}  fxe4 {[%clk 0:02:00]} 18. c4 {[%clk 0:01:03]}  d4 {[%clk 0:01:30]} 19. Nxe4 {[%clk 0:00:54]}  d3 {[%clk 0:01:25]} 20. Nxd6+ {[%clk 0:00:34]}  Qxd6 {[%clk 0:01:14]} 21. Qd2 {[%clk 0:00:35]}  h4 {[%clk 0:00:59]} 22. Bh3 {[%clk 0:00:29]}  Qg6 {[%clk 0:00:57]} 23. Qd1 {[%clk 0:00:16]}  hxg3 {[%clk 0:00:44]} 24. Qxg4+ {[%clk 0:00:15]}  Qxg4 {[%clk 0:00:45]} 25. Bxg4+ {[%clk 0:00:15]}  Kb7 {[%clk 0:00:43]} 26. h3 {[%clk 0:00:15]}  Rh4 {[%clk 0:00:29]} 27. Rad1 {[%clk 0:00:14]}  Rxg4 {[%clk 0:00:23]} 28. hxg4 {[%clk 0:00:13]}  Rh8 {[%clk 0:00:23]} 0-1


[Site "https://www.chess.com"]

[Event "Titled Tuesday Blitz January 17 Early 2023"]
[White "Rose, Felix"]
[Black "Ciuffoletti, Paolo"]
[WhiteFideId "5105722"]
[BlackFideId "807630"]
[WhiteElo "2091"]
[BlackElo "2106"]
[Result "1-0"]
[Round "05"]
[TimeControl "180+2"]
[Date "2023.01.17"]
[WhiteClock "0:00:41"]
[BlackClock "0:00:24"]

1. e4 {[%clk 0:03:00]}  c5 {[%clk 0:02:59]} 2. Nf3 {[%clk 0:03:00]}  Nc6 {[%clk 0:02:59]} 3. d4 {[%clk 0:03:01]}  cxd4 {[%clk 0:02:59]} 4. Nxd4 {[%clk 0:03:02]}  Nf6 {[%clk 0:02:59]} 5. Nc3 {[%clk 0:03:02]}  e5 {[%clk 0:03:00]} 6. Ndb5 {[%clk 0:03:02]}  d6 {[%clk 0:03:00]} 7. Bg5 {[%clk 0:03:02]}  a6 {[%clk 0:03:00]} 8. Na3 {[%clk 0:03:03]}  b5 {[%clk 0:03:00]} 9. Nd5 {[%clk 0:03:03]}  Be7 {[%clk 0:03:01]} 10. Bxf6 {[%clk 0:03:04]}  Bxf6 {[%clk 0:03:01]} 11. c3 {[%clk 0:03:05]}  O-O {[%clk 0:03:00]} 12. Nc2 {[%clk 0:03:05]}  Rb8 {[%clk 0:03:01]} 13. Be2 {[%clk 0:03:05]}  Bg5 {[%clk 0:03:00]} 14. O-O {[%clk 0:03:05]}  Be6 {[%clk 0:02:59]} 15. a4 {[%clk 0:03:02]}  Bxd5 {[%clk 0:02:38]} 16. exd5 {[%clk 0:03:02]}  Ne7 {[%clk 0:02:36]} 17. b4 {[%clk 0:02:56]}  f5 {[%clk 0:02:25]} 18. axb5 {[%clk 0:02:50]}  axb5 {[%clk 0:02:25]} 19. Ra5 {[%clk 0:02:50]}  Qc7 {[%clk 0:02:03]} 20. Qd3 {[%clk 0:02:45]}  e4 {[%clk 0:01:46]} 21. Qg3 {[%clk 0:02:33]}  Bf6 {[%clk 0:01:45]} 22. Rxb5 {[%clk 0:02:20]}  Rxb5 {[%clk 0:01:43]} 23. Bxb5 {[%clk 0:02:21]}  Bxc3 {[%clk 0:01:40]} 24. Bc6 {[%clk 0:02:12]}  Be5 {[%clk 0:01:37]} 25. Qb3 {[%clk 0:02:05]}  Ng6 {[%clk 0:01:18]} 26. b5 {[%clk 0:01:57]}  Qb6 {[%clk 0:01:17]} 27. Qe3 {[%clk 0:01:51]}  Rb8 {[%clk 0:01:06]} 28. Qxb6 {[%clk 0:01:47]}  Rxb6 {[%clk 0:01:05]} 29. Na3 {[%clk 0:01:47]}  Bd4 {[%clk 0:00:56]} 30. Nc4 {[%clk 0:01:47]}  Rb8 {[%clk 0:00:56]} 31. Nxd6 {[%clk 0:01:45]}  Ne5 {[%clk 0:00:51]} 32. Nxf5 {[%clk 0:01:41]}  Bb6 {[%clk 0:00:50]} 33. Re1 {[%clk 0:01:35]}  Nd3 {[%clk 0:00:49]} 34. Rxe4 {[%clk 0:01:30]}  Nxf2 {[%clk 0:00:48]} 35. Re7 {[%clk 0:01:24]}  Rf8 {[%clk 0:00:42]} 36. Rb7 {[%clk 0:00:59]}  Bc5 {[%clk 0:00:38]} 37. Ne7+ {[%clk 0:00:53]}  Kh8 {[%clk 0:00:34]} 38. g3 {[%clk 0:00:53]}  Ng4+ {[%clk 0:00:31]} 39. Kg2 {[%clk 0:00:52]}  h5 {[%clk 0:00:30]} 40. Ng6+ {[%clk 0:00:49]}  Kg8 {[%clk 0:00:27]} 41. Nxf8 {[%clk 0:00:50]}  Kxf8 {[%clk 0:00:28]} 42. h3 {[%clk 0:00:48]}  Ne5 {[%clk 0:00:26]} 43. Rb8+ {[%clk 0:00:45]}  Ke7 {[%clk 0:00:25]} 44. Re8+ {[%clk 0:00:41]}  Kd6 {[%clk 0:00:24]} 45. Re6+ {[%clk 0:00:41]} 1-0


[Site "https://www.chess.com"]

[Event "Titled Tuesday Blitz January 17 Early 2023"]
[White "Garrido, Denis"]
[Black "Larina, Maria"]
[WhiteFideId "601217"]
[BlackFideId "24113182"]
[WhiteElo "2205"]
[BlackElo "1948"]
[Result "1-0"]
[Round "05"]
[TimeControl "180+2"]
[Date "2023.01.17"]
[WhiteClock "0:01:50"]
[BlackClock "0:01:02"]

1. e4 {[%clk 0:03:00]}  c6 {[%clk 0:02:45]} 2. d4 {[%clk 0:02:59]}  d5 {[%clk 0:02:45]} 3. e5 {[%clk 0:02:59]}  c5 {[%clk 0:02:43]} 4. dxc5 {[%clk 0:02:59]}  Nc6 {[%clk 0:02:41]} 5. a3 {[%clk 0:02:58]}  e6 {[%clk 0:02:36]} 6. Nf3 {[%clk 0:02:50]}  a6 {[%clk 0:02:35]} 7. b4 {[%clk 0:02:49]}  Qc7 {[%clk 0:02:30]} 8. Bb2 {[%clk 0:02:49]}  b6 {[%clk 0:02:30]} 9. cxb6 {[%clk 0:02:46]}  Qxb6 {[%clk 0:02:29]} 10. Bd3 {[%clk 0:02:42]}  Nge7 {[%clk 0:02:16]} 11. O-O {[%clk 0:02:42]}  Ng6 {[%clk 0:02:15]} 12. Nbd2 {[%clk 0:02:41]}  a5 {[%clk 0:02:10]} 13. b5 {[%clk 0:02:40]}  Na7 {[%clk 0:02:04]} 14. c4 {[%clk 0:02:34]}  Bb7 {[%clk 0:02:02]} 15. Re1 {[%clk 0:02:27]}  Bc5 {[%clk 0:01:58]} 16. Qe2 {[%clk 0:02:28]}  Nf4 {[%clk 0:01:57]} 17. Qf1 {[%clk 0:02:28]}  Bxf2+ {[%clk 0:01:55]} 18. Kh1 {[%clk 0:02:25]}  Bxe1 {[%clk 0:01:53]} 19. Rxe1 {[%clk 0:02:21]}  Nxd3 {[%clk 0:01:52]} 20. Qxd3 {[%clk 0:02:22]}  O-O {[%clk 0:01:47]} 21. Ng5 {[%clk 0:02:21]}  g6 {[%clk 0:01:42]} 22. Qh3 {[%clk 0:02:21]}  h5 {[%clk 0:01:41]} 23. Rf1 {[%clk 0:02:02]}  dxc4 {[%clk 0:01:37]} 24. Nde4 {[%clk 0:01:58]}  Bxe4 {[%clk 0:01:35]} 25. Nxe4 {[%clk 0:01:59]}  Nxb5 {[%clk 0:01:13]} 26. Nf6+ {[%clk 0:01:57]}  Kg7 {[%clk 0:01:13]} 27. Rf3 {[%clk 0:01:53]}  c3 {[%clk 0:01:10]} 28. Nxh5+ {[%clk 0:01:49]}  gxh5 {[%clk 0:01:05]} 29. Rg3+ {[%clk 0:01:49]}  Kh6 {[%clk 0:01:03]} 30. Bc1+ {[%clk 0:01:50]}  Kh7 {[%clk 0:01:02]} 31. Qxh5# {[%clk 0:01:50]} 1-0


[Site "https://www.chess.com"]

[Event "Titled Tuesday Blitz January 17 Early 2023"]
[White "Broca Jimenez, Fernando"]
[Black "Adithya A Chullikkad"]
[WhiteFideId "5104742"]
[BlackFideId "45078734"]
[WhiteElo "2075"]
[BlackElo "2259"]
[Result "1-0"]
[Round "05"]
[TimeControl "180+2"]
[Date "2023.01.17"]
[WhiteClock "0:00:37"]
[BlackClock "0:01:18"]

1. e4 {[%clk 0:02:56]}  e5 {[%clk 0:02:59]} 2. Nf3 {[%clk 0:02:54]}  Nc6 {[%clk 0:02:59]} 3. Bb5 {[%clk 0:02:53]}  a6 {[%clk 0:02:58]} 4. Ba4 {[%clk 0:02:54]}  Nf6 {[%clk 0:02:57]} 5. O-O {[%clk 0:02:53]}  b5 {[%clk 0:02:57]} 6. Bb3 {[%clk 0:02:54]}  Bc5 {[%clk 0:02:56]} 7. c3 {[%clk 0:02:51]}  d6 {[%clk 0:02:40]} 8. d4 {[%clk 0:02:43]}  Bb6 {[%clk 0:02:40]} 9. dxe5 {[%clk 0:02:37]}  Nxe5 {[%clk 0:02:27]} 10. Nxe5 {[%clk 0:02:35]}  dxe5 {[%clk 0:02:26]} 11. Qxd8+ {[%clk 0:02:35]}  Kxd8 {[%clk 0:02:25]} 12. Bxf7 {[%clk 0:02:32]}  Bb7 {[%clk 0:02:25]} 13. Bg5 {[%clk 0:02:28]}  Ke7 {[%clk 0:02:25]} 14. Bd5 {[%clk 0:02:20]}  c6 {[%clk 0:02:24]} 15. Bb3 {[%clk 0:02:18]}  h6 {[%clk 0:02:23]} 16. Bxf6+ {[%clk 0:02:08]}  gxf6 {[%clk 0:02:22]} 17. Nd2 {[%clk 0:02:08]}  c5 {[%clk 0:02:02]} 18. Bc2 {[%clk 0:02:00]}  Rhg8 {[%clk 0:01:56]} 19. Rfe1 {[%clk 0:01:02]}  Rad8 {[%clk 0:01:48]} 20. Rad1 {[%clk 0:01:01]}  Rg7 {[%clk 0:01:33]} 21. Nf1 {[%clk 0:00:55]}  Rdg8 {[%clk 0:01:24]} 22. Ne3 {[%clk 0:00:40]}  c4 {[%clk 0:01:18]} 23. Nf5+ {[%clk 0:00:37]} 1-0


[Site "https://www.chess.com"]

[Event "Titled Tuesday Blitz January 17 Early 2023"]
[White "Thiel, Thomas"]
[Black "Stead, Kerry"]
[WhiteFideId "4615964"]
[BlackFideId "3202577"]
[WhiteElo "2234"]
[BlackElo "1908"]
[Result "1-0"]
[Round "05"]
[TimeControl "180+2"]
[Date "2023.01.17"]
[WhiteClock "0:01:43"]
[BlackClock "0:00:39"]

1. e4 {[%clk 0:02:54]}  c6 {[%clk 0:02:20]} 2. d4 {[%clk 0:02:52]}  d5 {[%clk 0:02:20]} 3. exd5 {[%clk 0:02:53]}  cxd5 {[%clk 0:02:19]} 4. c4 {[%clk 0:02:53]}  Nf6 {[%clk 0:02:18]} 5. Nc3 {[%clk 0:02:53]}  Nc6 {[%clk 0:02:18]} 6. Bg5 {[%clk 0:02:51]}  Ne4 {[%clk 0:02:13]} 7. Nxe4 {[%clk 0:02:47]}  dxe4 {[%clk 0:02:13]} 8. d5 {[%clk 0:02:47]}  Ne5 {[%clk 0:02:11]} 9. Qd4 {[%clk 0:02:45]}  f6 {[%clk 0:02:03]} 10. Bf4 {[%clk 0:02:43]}  Ng6 {[%clk 0:01:58]} 11. Bd2 {[%clk 0:02:42]}  Qb6 {[%clk 0:01:54]} 12. Bc3 {[%clk 0:02:24]}  Qxd4 {[%clk 0:01:48]} 13. Bxd4 {[%clk 0:02:25]}  e5 {[%clk 0:01:46]} 14. Bc3 {[%clk 0:02:22]}  a5 {[%clk 0:01:26]} 15. a3 {[%clk 0:02:19]}  Bd6 {[%clk 0:01:20]} 16. Ne2 {[%clk 0:02:18]}  Nf4 {[%clk 0:00:55]} 17. Nxf4 {[%clk 0:02:14]}  exf4 {[%clk 0:00:55]} 18. Be2 {[%clk 0:01:51]}  Kf7 {[%clk 0:00:48]} 19. O-O {[%clk 0:01:50]}  Re8 {[%clk 0:00:46]} 20. b4 {[%clk 0:01:49]}  axb4 {[%clk 0:00:45]} 21. axb4 {[%clk 0:01:50]}  Bf5 {[%clk 0:00:41]} 22. c5 {[%clk 0:01:48]}  Be5 {[%clk 0:00:40]} 23. Bxe5 {[%clk 0:01:47]}  Rxe5 {[%clk 0:00:39]} 24. Rxa8 {[%clk 0:01:43]} 1-0


[Site "https://www.chess.com"]

[Event "Titled Tuesday Blitz January 17 Early 2023"]
[White "Necula, Iulian"]
[Black "Smietanska, Wiktoria"]
[WhiteFideId "1232380"]
[BlackFideId "21869359"]
[WhiteElo "1851"]
[BlackElo "1936"]
[Result "0-1"]
[Round "05"]
[TimeControl "180+2"]
[Date "2023.01.17"]
[WhiteClock "0:00:34"]
[BlackClock "0:00:02"]

1. d4 {[%clk 0:03:00]}  Nf6 {[%clk 0:02:56]} 2. Nc3 {[%clk 0:02:59]}  g6 {[%clk 0:02:56]} 3. Bf4 {[%clk 0:02:56]}  d5 {[%clk 0:02:55]} 4. e3 {[%clk 0:02:55]}  Bg7 {[%clk 0:02:55]} 5. h3 {[%clk 0:02:54]}  O-O {[%clk 0:02:55]} 6. Bd3 {[%clk 0:02:40]}  c5 {[%clk 0:02:53]} 7. Nf3 {[%clk 0:02:35]}  Nc6 {[%clk 0:02:16]} 8. O-O {[%clk 0:02:24]}  a6 {[%clk 0:02:08]} 9. Ne5 {[%clk 0:02:15]}  cxd4 {[%clk 0:02:04]} 10. Nxc6 {[%clk 0:02:14]}  bxc6 {[%clk 0:02:02]} 11. exd4 {[%clk 0:02:14]}  e6 {[%clk 0:01:55]} 12. Be5 {[%clk 0:02:13]}  Nd7 {[%clk 0:01:29]} 13. Bxg7 {[%clk 0:02:12]}  Kxg7 {[%clk 0:01:30]} 14. Ne2 {[%clk 0:02:05]}  c5 {[%clk 0:01:27]} 15. c3 {[%clk 0:02:04]}  c4 {[%clk 0:01:24]} 16. Bc2 {[%clk 0:02:03]}  Qb6 {[%clk 0:01:18]} 17. Rb1 {[%clk 0:02:02]}  Bb7 {[%clk 0:01:06]} 18. h4 {[%clk 0:02:01]}  Rad8 {[%clk 0:00:47]} 19. Nf4 {[%clk 0:02:01]}  h5 {[%clk 0:00:45]} 20. g4 {[%clk 0:01:54]}  hxg4 {[%clk 0:00:42]} 21. Qxg4 {[%clk 0:01:53]}  Nf6 {[%clk 0:00:41]} 22. Qg3 {[%clk 0:01:49]}  Rh8 {[%clk 0:00:11]} 23. Nxg6 {[%clk 0:01:47]}  Nh5 {[%clk 0:00:07]} 24. Qg5 {[%clk 0:01:31]}  fxg6 {[%clk 0:00:04]} 25. Bxg6 {[%clk 0:01:24]}  Rdg8 {[%clk 0:00:03]} 26. Bxh5+ {[%clk 0:01:22]}  Kf8 {[%clk 0:00:03]} 27. Bg6 {[%clk 0:01:18]}  Rxg6 {[%clk 0:00:02]} 28. Qxg6 {[%clk 0:01:18]}  Rg8 {[%clk 0:00:03]} 29. Qxg8+ {[%clk 0:01:16]}  Kxg8 {[%clk 0:00:03]} 30. Kh2 {[%clk 0:01:05]}  Qd6+ {[%clk 0:00:04]} 31. Kh3 {[%clk 0:01:05]}  Qf4 {[%clk 0:00:04]} 32. Rg1+ {[%clk 0:01:06]}  Kh7 {[%clk 0:00:03]} 33. Rg2 {[%clk 0:01:04]}  e5 {[%clk 0:00:03]} 34. Rbg1 {[%clk 0:01:00]}  Bc8+ {[%clk 0:00:03]} 35. Rg4 {[%clk 0:00:56]}  Bxg4+ {[%clk 0:00:03]} 36. Rxg4 {[%clk 0:00:55]}  Qxf2 {[%clk 0:00:02]} 37. dxe5 {[%clk 0:00:54]}  Qf3+ {[%clk 0:00:03]} 38. Rg3 {[%clk 0:00:54]}  Qf5+ {[%clk 0:00:03]} 39. Kg2 {[%clk 0:00:54]}  Qxe5 {[%clk 0:00:03]} 40. Rg5 {[%clk 0:00:49]}  Qe2+ {[%clk 0:00:03]} 41. Kg3 {[%clk 0:00:49]}  Qxb2 {[%clk 0:00:02]} 42. Rxd5 {[%clk 0:00:50]}  Qxc3+ {[%clk 0:00:03]} 43. Kf4 {[%clk 0:00:41]}  Qc1+ {[%clk 0:00:03]} 44. Ke5 {[%clk 0:00:40]}  c3 {[%clk 0:00:03]} 45. Rd7+ {[%clk 0:00:39]}  Kg6 {[%clk 0:00:03]} 46. Rd6+ {[%clk 0:00:39]}  Kh5 {[%clk 0:00:03]} 47. Rxa6 {[%clk 0:00:37]}  c2 {[%clk 0:00:03]} 48. Ra4 {[%clk 0:00:34]}  Qb2+ {[%clk 0:00:02]} 49. Ke4 {[%clk 0:00:34]}  c1=Q {[%clk 0:00:02]} 0-1


[Site "https://www.chess.com"]

[Event "Titled Tuesday Blitz January 17 Early 2023"]
[White "Puranik, Abhimanyu"]
[Black "Nakamura, Hikaru"]
[WhiteFideId "5061245"]
[BlackFideId "2016192"]
[WhiteElo "2613"]
[BlackElo "2775"]
[Result "1-0"]
[Round "06"]
[TimeControl "180+2"]
[Date "2023.01.17"]
[WhiteClock "0:00:07"]
[BlackClock "0:00:02"]

1. e4 {[%clk 0:03:00]}  e5 {[%clk 0:02:54]} 2. Nf3 {[%clk 0:03:00]}  Nc6 {[%clk 0:02:54]} 3. Bb5 {[%clk 0:03:01]}  Nf6 {[%clk 0:02:54]} 4. d3 {[%clk 0:03:00]}  Bc5 {[%clk 0:02:54]} 5. Bxc6 {[%clk 0:03:00]}  dxc6 {[%clk 0:02:54]} 6. Nbd2 {[%clk 0:02:58]}  Be6 {[%clk 0:02:54]} 7. Qe2 {[%clk 0:02:53]}  Nd7 {[%clk 0:02:53]} 8. Nb3 {[%clk 0:02:52]}  Bb6 {[%clk 0:02:51]} 9. Ng5 {[%clk 0:02:52]}  Bxb3 {[%clk 0:02:49]} 10. axb3 {[%clk 0:02:53]}  f6 {[%clk 0:02:49]} 11. Nf3 {[%clk 0:02:50]}  Nf8 {[%clk 0:02:48]} 12. Be3 {[%clk 0:02:40]}  Ne6 {[%clk 0:02:46]} 13. b4 {[%clk 0:02:36]}  O-O {[%clk 0:02:39]} 14. O-O {[%clk 0:02:36]}  Qe7 {[%clk 0:02:39]} 15. c3 {[%clk 0:02:35]}  Rfd8 {[%clk 0:02:34]} 16. Rfd1 {[%clk 0:02:20]}  a6 {[%clk 0:02:26]} 17. Nd2 {[%clk 0:02:16]}  Bxe3 {[%clk 0:02:22]} 18. fxe3 {[%clk 0:02:13]}  c5 {[%clk 0:02:16]} 19. bxc5 {[%clk 0:02:10]}  Nxc5 {[%clk 0:02:15]} 20. d4 {[%clk 0:02:10]}  Ne6 {[%clk 0:02:16]} 21. Nf3 {[%clk 0:02:07]}  Nf8 {[%clk 0:02:06]} 22. Qc4+ {[%clk 0:02:05]}  Kh8 {[%clk 0:01:58]} 23. dxe5 {[%clk 0:01:53]}  fxe5 {[%clk 0:01:59]} 24. Rd5 {[%clk 0:01:53]}  Ng6 {[%clk 0:01:56]} 25. Rad1 {[%clk 0:01:33]}  c6 {[%clk 0:01:34]} 26. R5d3 {[%clk 0:01:33]}  h6 {[%clk 0:01:29]} 27. h3 {[%clk 0:01:30]}  Kh7 {[%clk 0:01:29]} 28. Rxd8 {[%clk 0:01:14]}  Rxd8 {[%clk 0:01:29]} 29. Rxd8 {[%clk 0:01:14]}  Qxd8 {[%clk 0:01:30]} 30. Qf7 {[%clk 0:01:14]}  Qb6 {[%clk 0:01:28]} 31. Qf5 {[%clk 0:00:47]}  Qxe3+ {[%clk 0:01:25]} 32. Kh1 {[%clk 0:00:48]}  Qc1+ {[%clk 0:01:18]} 33. Kh2 {[%clk 0:00:45]}  Qf4+ {[%clk 0:01:16]} 34. g3 {[%clk 0:00:42]}  Qc1 {[%clk 0:01:04]} 35. h4 {[%clk 0:00:31]}  Qxb2+ {[%clk 0:00:36]} 36. Kh3 {[%clk 0:00:31]}  Qa3 {[%clk 0:00:02]} 37. h5 {[%clk 0:00:27]}  Qd6 {[%clk 0:00:03]} 38. Nh4 {[%clk 0:00:25]}  Kg8 {[%clk 0:00:03]} 39. hxg6 {[%clk 0:00:16]}  Qd8 {[%clk 0:00:01]} 40. Qf7+ {[%clk 0:00:15]}  Kh8 {[%clk 0:00:02]} 41. Nf5 {[%clk 0:00:15]}  Qg8 {[%clk 0:00:03]} 42. Qe7 {[%clk 0:00:10]}  a5 {[%clk 0:00:01]} 43. Qxe5 {[%clk 0:00:10]}  a4 {[%clk 0:00:01]} 44. Nxh6 {[%clk 0:00:07]}  Qc8+ {[%clk 0:00:02]} 45. Nf5 {[%clk 0:00:07]} 1-0


[Site "https://www.chess.com"]

[Event "Titled Tuesday Blitz January 17 Early 2023"]
[White "Bluebaum, Matthias"]
[Black "Bernadskiy, Vitaliy"]
[WhiteFideId "24651516"]
[BlackFideId "14100371"]
[WhiteElo "2669"]
[BlackElo "2592"]
[Result "1/2-1/2"]
[Round "06"]
[TimeControl "180+2"]
[Date "2023.01.17"]
[WhiteClock "0:00:20"]
[BlackClock "0:00:08"]

1. d4 {[%clk 0:03:00]}  Nf6 {[%clk 0:02:59]} 2. c4 {[%clk 0:03:01]}  g6 {[%clk 0:03:00]} 3. Nc3 {[%clk 0:03:01]}  d5 {[%clk 0:03:00]} 4. cxd5 {[%clk 0:03:02]}  Nxd5 {[%clk 0:03:01]} 5. e4 {[%clk 0:03:03]}  Nxc3 {[%clk 0:03:02]} 6. bxc3 {[%clk 0:03:04]}  Bg7 {[%clk 0:03:02]} 7. Nf3 {[%clk 0:03:05]}  c5 {[%clk 0:03:02]} 8. Bb5+ {[%clk 0:03:05]}  Nd7 {[%clk 0:03:02]} 9. O-O {[%clk 0:03:05]}  O-O {[%clk 0:03:02]} 10. Re1 {[%clk 0:03:05]}  a6 {[%clk 0:03:03]} 11. Bf1 {[%clk 0:03:05]}  b5 {[%clk 0:03:01]} 12. a4 {[%clk 0:03:05]}  bxa4 {[%clk 0:03:02]} 13. Qxa4 {[%clk 0:03:02]}  cxd4 {[%clk 0:02:58]} 14. cxd4 {[%clk 0:03:02]}  Bb7 {[%clk 0:02:50]} 15. Rb1 {[%clk 0:02:53]}  Ra7 {[%clk 0:02:32]} 16. d5 {[%clk 0:02:47]}  Bc8 {[%clk 0:02:22]} 17. Be3 {[%clk 0:02:29]}  Rc7 {[%clk 0:02:22]} 18. Rec1 {[%clk 0:02:29]}  Nf6 {[%clk 0:02:15]} 19. Ne5 {[%clk 0:01:50]}  Nxd5 {[%clk 0:02:03]} 20. Nc6 {[%clk 0:01:29]}  Rxc6 {[%clk 0:01:57]} 21. Qxc6 {[%clk 0:01:30]}  Nxe3 {[%clk 0:01:54]} 22. fxe3 {[%clk 0:01:30]}  Bh6 {[%clk 0:01:39]} 23. Qc3 {[%clk 0:01:20]}  Be6 {[%clk 0:01:24]} 24. Bxa6 {[%clk 0:01:15]}  Qa8 {[%clk 0:01:24]} 25. Bb7 {[%clk 0:01:11]}  Qa7 {[%clk 0:01:24]} 26. Re1 {[%clk 0:01:06]}  Rb8 {[%clk 0:01:20]} 27. Bd5 {[%clk 0:01:06]}  Rxb1 {[%clk 0:01:17]} 28. Rxb1 {[%clk 0:01:07]}  Qxe3+ {[%clk 0:01:15]} 29. Qxe3 {[%clk 0:01:06]}  Bxe3+ {[%clk 0:01:16]} 30. Kf1 {[%clk 0:01:07]}  Bxd5 {[%clk 0:01:16]} 31. exd5 {[%clk 0:01:08]}  Bc5 {[%clk 0:01:16]} 32. Ke2 {[%clk 0:01:06]}  Bd6 {[%clk 0:01:16]} 33. h3 {[%clk 0:01:06]}  Kg7 {[%clk 0:01:16]} 34. Ke3 {[%clk 0:01:06]}  f5 {[%clk 0:01:14]} 35. Kd4 {[%clk 0:01:06]}  Kf6 {[%clk 0:01:13]} 36. Re1 {[%clk 0:01:06]}  Kg5 {[%clk 0:01:08]} 37. Ke3 {[%clk 0:01:05]}  Kf6 {[%clk 0:01:05]} 38. Kf3 {[%clk 0:01:06]}  Be5 {[%clk 0:01:05]} 39. Re2 {[%clk 0:01:05]}  h5 {[%clk 0:01:00]} 40. g3 {[%clk 0:00:49]}  g5 {[%clk 0:00:59]} 41. g4 {[%clk 0:00:44]}  hxg4+ {[%clk 0:00:55]} 42. hxg4 {[%clk 0:00:45]}  e6 {[%clk 0:00:54]} 43. dxe6 {[%clk 0:00:33]}  Kxe6 {[%clk 0:00:55]} 44. Ra2 {[%clk 0:00:27]}  fxg4+ {[%clk 0:00:55]} 45. Kxg4 {[%clk 0:00:28]}  Bf4 {[%clk 0:00:55]} 46. Ra5 {[%clk 0:00:28]}  Kd6 {[%clk 0:00:55]} 47. Kf5 {[%clk 0:00:29]}  Kd7 {[%clk 0:00:55]} 48. Ra6 {[%clk 0:00:28]}  Ke7 {[%clk 0:00:54]} 49. Rg6 {[%clk 0:00:25]}  Kf7 {[%clk 0:00:53]} 50. Re6 {[%clk 0:00:25]}  Bc1 {[%clk 0:00:46]} 51. Rc6 {[%clk 0:00:25]}  Bf4 {[%clk 0:00:46]} 52. Re6 {[%clk 0:00:25]}  Bc1 {[%clk 0:00:43]} 53. Re4 {[%clk 0:00:21]}  Bf4 {[%clk 0:00:43]} 54. Re1 {[%clk 0:00:22]}  Bg3 {[%clk 0:00:25]} 55. Rb1 {[%clk 0:00:21]}  Ke7 {[%clk 0:00:23]} 56. Kxg5 {[%clk 0:00:21]}  Bd6 {[%clk 0:00:22]} 57. Kf5 {[%clk 0:00:21]}  Kd7 {[%clk 0:00:23]} 58. Rc1 {[%clk 0:00:21]}  Bc7 {[%clk 0:00:22]} 59. Rc2 {[%clk 0:00:21]}  Kc8 {[%clk 0:00:22]} 60. Ke6 {[%clk 0:00:21]}  Kb7 {[%clk 0:00:22]} 61. Kd7 {[%clk 0:00:22]}  Bb8 {[%clk 0:00:20]} 62. Rb2+ {[%clk 0:00:22]}  Ka8 {[%clk 0:00:20]} 63. Kc6 {[%clk 0:00:23]}  Ba7 {[%clk 0:00:20]} 64. Kc7 {[%clk 0:00:23]}  Bg1 {[%clk 0:00:14]} 65. Ra2+ {[%clk 0:00:20]}  Ba7 {[%clk 0:00:14]} 66. Rb2 {[%clk 0:00:21]}  Bg1 {[%clk 0:00:13]} 67. Rb1 {[%clk 0:00:22]}  Ba7 {[%clk 0:00:10]} 68. Rb3 {[%clk 0:00:19]}  Bg1 {[%clk 0:00:09]} 69. Rb8+ {[%clk 0:00:19]}  Ka7 {[%clk 0:00:10]} 70. Rb2 {[%clk 0:00:20]}  Ka8 {[%clk 0:00:08]} 1/2-1/2


[Site "https://www.chess.com"]